[Event "Titled Tuesday Blitz July 05 Late 2022"]
[White "Sanal, Vahap"]
[Black "Hakobyan, Aram"]
[WhiteFideId "6300545"]
[BlackFideId "13306677"]
[WhiteElo "2574"]
[BlackElo "2557"]
[Result "0-1"]
[Round "08"]
[TimeControl "180+1"]
[Date "2022.07.05"]
[WhiteClock "0:00:01"]
[BlackClock "0:00:19"]

1. d4 {[%clk 0:03:00]}  Nf6 {[%clk 0:02:57]} 2. Nf3 {[%clk 0:03:00]}  d5 {[%clk 0:02:57]} 3. e3 {[%clk 0:03:01]}  e6 {[%clk 0:02:56]} 4. Be2 {[%clk 0:03:01]}  Be7 {[%clk 0:02:55]} 5. O-O {[%clk 0:03:02]}  O-O {[%clk 0:02:55]} 6. b3 {[%clk 0:03:03]}  b6 {[%clk 0:02:56]} 7. Bb2 {[%clk 0:03:03]}  Bb7 {[%clk 0:02:57]} 8. c4 {[%clk 0:03:04]}  dxc4 {[%clk 0:02:55]} 9. bxc4 {[%clk 0:03:02]}  c5 {[%clk 0:02:56]} 10. Nbd2 {[%clk 0:03:03]}  Nbd7 {[%clk 0:02:53]} 11. Rc1 {[%clk 0:03:01]}  Rc8 {[%clk 0:02:53]} 12. Bd3 {[%clk 0:03:00]}  Qc7 {[%clk 0:02:52]} 13. Bb1 {[%clk 0:02:55]}  Rfd8 {[%clk 0:02:52]} 14. Qe2 {[%clk 0:02:55]}  Nf8 {[%clk 0:02:49]} 15. Nb3 {[%clk 0:02:40]}  cxd4 {[%clk 0:02:22]} 16. Nbxd4 {[%clk 0:02:34]}  a6 {[%clk 0:02:13]} 17. Nb3 {[%clk 0:02:12]}  Ng4 {[%clk 0:02:07]} 18. Rfd1 {[%clk 0:01:52]}  Bxf3 {[%clk 0:02:01]} 19. Qxf3 {[%clk 0:01:52]}  Qxh2+ {[%clk 0:02:01]} 20. Kf1 {[%clk 0:01:52]}  Ne5 {[%clk 0:01:54]} 21. Qe4 {[%clk 0:01:45]}  Rxd1+ {[%clk 0:01:43]} 22. Rxd1 {[%clk 0:01:45]}  Nxc4 {[%clk 0:01:44]} 23. Bd4 {[%clk 0:01:38]}  Rd8 {[%clk 0:01:39]} 24. Ke2 {[%clk 0:01:28]}  Qh5+ {[%clk 0:01:35]} 25. g4 {[%clk 0:01:27]}  Qd5 {[%clk 0:01:32]} 26. Rc1 {[%clk 0:00:54]}  b5 {[%clk 0:01:29]} 27. Rh1 {[%clk 0:00:38]}  Qxe4 {[%clk 0:01:28]} 28. Bxe4 {[%clk 0:00:38]}  g6 {[%clk 0:01:22]} 29. Bb7 {[%clk 0:00:36]}  Nd6 {[%clk 0:01:11]} 30. Bf3 {[%clk 0:00:16]}  Nd7 {[%clk 0:01:11]} 31. Na5 {[%clk 0:00:15]}  Bf8 {[%clk 0:01:07]} 32. Nc6 {[%clk 0:00:14]}  Re8 {[%clk 0:01:02]} 33. Rc1 {[%clk 0:00:11]}  Nc4 {[%clk 0:00:55]} 34. Rd1 {[%clk 0:00:10]}  Nc5 {[%clk 0:00:50]} 35. Bf6 {[%clk 0:00:07]}  Na4 {[%clk 0:00:41]} 36. Rd7 {[%clk 0:00:07]}  Bg7 {[%clk 0:00:36]} 37. g5 {[%clk 0:00:05]}  Nc3+ {[%clk 0:00:30]} 38. Kf1 {[%clk 0:00:05]}  Nxa2 {[%clk 0:00:26]} 39. Ne7+ {[%clk 0:00:05]}  Kh8 {[%clk 0:00:23]} 40. Nc6 {[%clk 0:00:06]}  Bxf6 {[%clk 0:00:20]} 41. gxf6 {[%clk 0:00:07]}  Rf8 {[%clk 0:00:20]} 42. Nd8 {[%clk 0:00:05]}  Kg8 {[%clk 0:00:20]} 43. Bg4 {[%clk 0:00:06]}  Ne5 {[%clk 0:00:20]} 44. Bxe6 {[%clk 0:00:01]}  Nxd7 {[%clk 0:00:19]} 0-1


[Site "https://www.chess.com"]

[Event "Titled Tuesday Blitz July 05 Late 2022"]
[White "Sargsyan, Anna M."]
[Black "Deac, Bogdan-Daniel"]
[WhiteFideId "13308130"]
[BlackFideId "1226380"]
[WhiteElo "2271"]
[BlackElo "2648"]
[Result "0-1"]
[Round "08"]
[TimeControl "180+1"]
[Date "2022.07.05"]
[WhiteClock "0:00:03"]
[BlackClock "0:00:50"]

1. d4 {[%clk 0:02:59]}  Nf6 {[%clk 0:03:00]} 2. c4 {[%clk 0:02:59]}  e6 {[%clk 0:03:00]} 3. Nf3 {[%clk 0:03:00]}  d5 {[%clk 0:03:01]} 4. Nc3 {[%clk 0:03:00]}  dxc4 {[%clk 0:03:01]} 5. e4 {[%clk 0:03:00]}  Bb4 {[%clk 0:03:02]} 6. Bg5 {[%clk 0:02:58]}  h6 {[%clk 0:03:02]} 7. Bxf6 {[%clk 0:02:57]}  Qxf6 {[%clk 0:03:03]} 8. Bxc4 {[%clk 0:02:57]}  c5 {[%clk 0:03:03]} 9. O-O {[%clk 0:02:57]}  O-O {[%clk 0:03:04]} 10. Nb5 {[%clk 0:02:48]}  a6 {[%clk 0:02:47]} 11. Nd6 {[%clk 0:02:42]}  cxd4 {[%clk 0:02:44]} 12. e5 {[%clk 0:02:39]}  Qe7 {[%clk 0:02:43]} 13. Nxc8 {[%clk 0:02:27]}  Rxc8 {[%clk 0:02:44]} 14. Qxd4 {[%clk 0:02:26]}  Nd7 {[%clk 0:02:42]} 15. Rfd1 {[%clk 0:02:14]}  Rc7 {[%clk 0:02:41]} 16. Bb3 {[%clk 0:02:06]}  Rac8 {[%clk 0:02:31]} 17. h3 {[%clk 0:02:06]}  Bc5 {[%clk 0:02:30]} 18. Qg4 {[%clk 0:02:02]}  Ba7 {[%clk 0:02:21]} 19. Rf1 {[%clk 0:01:16]}  Bb8 {[%clk 0:02:07]} 20. Rfe1 {[%clk 0:01:06]}  Rc5 {[%clk 0:02:05]} 21. Qd4 {[%clk 0:01:01]}  Nf8 {[%clk 0:01:43]} 22. Rad1 {[%clk 0:00:56]}  Qc7 {[%clk 0:01:41]} 23. h4 {[%clk 0:00:46]}  Ng6 {[%clk 0:01:30]} 24. g3 {[%clk 0:00:13]}  b5 {[%clk 0:01:23]} 25. Qd7 {[%clk 0:00:09]}  Qb6 {[%clk 0:01:16]} 26. Kg2 {[%clk 0:00:09]}  a5 {[%clk 0:01:09]} 27. h5 {[%clk 0:00:09]}  Nf8 {[%clk 0:01:06]} 28. Qd4 {[%clk 0:00:08]}  Qb7 {[%clk 0:00:59]} 29. a3 {[%clk 0:00:07]}  a4 {[%clk 0:00:54]} 30. Ba2 {[%clk 0:00:07]}  Rc2 {[%clk 0:00:54]} 31. Bb1 {[%clk 0:00:08]}  Ba7 {[%clk 0:00:52]} 32. Qd3 {[%clk 0:00:03]}  Rxf2+ {[%clk 0:00:51]} 33. Kh3 {[%clk 0:00:03]}  Qxf3 {[%clk 0:00:50]} 34. Qxf3 {[%clk 0:00:03]}  Rxf3 {[%clk 0:00:50]} 0-1


[Site "https://www.chess.com"]

[Event "Titled Tuesday Blitz July 05 Late 2022"]
[White "Shimanov, Aleksandr"]
[Black "Martinez Alcantara, Jose Eduardo"]
[WhiteFideId "4198603"]
[BlackFideId "3805662"]
[WhiteElo "2605"]
[BlackElo "2703"]
[Result "1-0"]
[Round "08"]
[TimeControl "180+1"]
[Date "2022.07.05"]
[WhiteClock "0:00:17"]
[BlackClock "0:00:17"]

1. b3 {[%clk 0:03:00]}  d5 {[%clk 0:03:00]} 2. Bb2 {[%clk 0:02:44]}  Nf6 {[%clk 0:03:00]} 3. Nf3 {[%clk 0:02:43]}  c6 {[%clk 0:03:00]} 4. h3 {[%clk 0:02:42]}  g6 {[%clk 0:02:45]} 5. d4 {[%clk 0:02:41]}  Bg7 {[%clk 0:02:45]} 6. e3 {[%clk 0:02:41]}  O-O {[%clk 0:02:44]} 7. c4 {[%clk 0:02:40]}  c5 {[%clk 0:02:40]} 8. dxc5 {[%clk 0:02:37]}  Qa5+ {[%clk 0:02:37]} 9. Nbd2 {[%clk 0:02:37]}  Rd8 {[%clk 0:02:29]} 10. a3 {[%clk 0:02:32]}  Qxc5 {[%clk 0:02:22]} 11. b4 {[%clk 0:02:32]}  Qc7 {[%clk 0:02:21]} 12. Rc1 {[%clk 0:02:31]}  Qd7 {[%clk 0:02:10]} 13. Be2 {[%clk 0:02:26]}  Nc6 {[%clk 0:02:06]} 14. O-O {[%clk 0:02:26]}  a6 {[%clk 0:02:05]} 15. Qb3 {[%clk 0:02:18]}  Qe8 {[%clk 0:01:47]} 16. cxd5 {[%clk 0:02:06]}  Nxd5 {[%clk 0:01:46]} 17. Bxg7 {[%clk 0:02:06]}  Kxg7 {[%clk 0:01:47]} 18. Rfd1 {[%clk 0:02:05]}  Nf6 {[%clk 0:01:44]} 19. Qb2 {[%clk 0:02:03]}  Kg8 {[%clk 0:01:42]} 20. Nb3 {[%clk 0:02:00]}  Rxd1+ {[%clk 0:01:40]} 21. Rxd1 {[%clk 0:02:01]}  Bf5 {[%clk 0:01:36]} 22. Bc4 {[%clk 0:01:37]}  b5 {[%clk 0:01:17]} 23. Be2 {[%clk 0:01:35]}  Ne4 {[%clk 0:01:12]} 24. Nfd4 {[%clk 0:01:35]}  Rc8 {[%clk 0:01:03]} 25. Bf3 {[%clk 0:01:30]}  Nxd4 {[%clk 0:01:02]} 26. Rxd4 {[%clk 0:01:31]}  Nd6 {[%clk 0:00:55]} 27. Nc5 {[%clk 0:01:31]}  a5 {[%clk 0:00:54]} 28. Bd5 {[%clk 0:01:21]}  axb4 {[%clk 0:00:53]} 29. axb4 {[%clk 0:01:22]}  Bd7 {[%clk 0:00:42]} 30. e4 {[%clk 0:01:16]}  Bc6 {[%clk 0:00:42]} 31. Bb3 {[%clk 0:01:16]}  Rd8 {[%clk 0:00:39]} 32. Qd2 {[%clk 0:01:07]}  Ra8 {[%clk 0:00:30]} 33. Kh2 {[%clk 0:00:51]}  Qb8 {[%clk 0:00:27]} 34. Qf4 {[%clk 0:00:46]}  Nc4 {[%clk 0:00:24]} 35. Qxb8+ {[%clk 0:00:44]}  Rxb8 {[%clk 0:00:25]} 36. Bxc4 {[%clk 0:00:44]}  bxc4 {[%clk 0:00:26]} 37. Rxc4 {[%clk 0:00:45]}  Bb5 {[%clk 0:00:25]} 38. Rd4 {[%clk 0:00:45]}  Ra8 {[%clk 0:00:26]} 39. Rd2 {[%clk 0:00:43]}  f6 {[%clk 0:00:17]} 40. f3 {[%clk 0:00:42]}  Kf7 {[%clk 0:00:17]} 41. Rb2 {[%clk 0:00:40]}  g5 {[%clk 0:00:17]} 42. Kg3 {[%clk 0:00:40]}  h5 {[%clk 0:00:17]} 43. h4 {[%clk 0:00:40]}  Rg8 {[%clk 0:00:16]} 44. hxg5 {[%clk 0:00:40]}  fxg5 {[%clk 0:00:17]} 45. Rd2 {[%clk 0:00:39]}  h4+ {[%clk 0:00:16]} 46. Kf2 {[%clk 0:00:39]}  Bc6 {[%clk 0:00:15]} 47. Rc2 {[%clk 0:00:37]}  Bb5 {[%clk 0:00:15]} 48. Rd2 {[%clk 0:00:37]}  Bc6 {[%clk 0:00:13]} 49. Ke3 {[%clk 0:00:37]}  Ra8 {[%clk 0:00:13]} 50. Nd3 {[%clk 0:00:36]}  Kf6 {[%clk 0:00:06]} 51. Kd4 {[%clk 0:00:29]}  Bb5 {[%clk 0:00:06]} 52. Nf2 {[%clk 0:00:23]}  Rd8+ {[%clk 0:00:05]} 53. Ke3 {[%clk 0:00:23]}  Ra8 {[%clk 0:00:05]} 54. Ng4+ {[%clk 0:00:22]}  Kg6 {[%clk 0:00:05]} 55. Kf2 {[%clk 0:00:20]}  Bc4 {[%clk 0:00:05]} 56. Ne5+ {[%clk 0:00:19]}  Kh5 {[%clk 0:00:05]} 57. Nxc4 {[%clk 0:00:20]}  g4 {[%clk 0:00:04]} 58. fxg4+ {[%clk 0:00:20]}  Kxg4 {[%clk 0:00:05]} 59. Ne5+ {[%clk 0:00:17]}  Kf4 {[%clk 0:00:06]} 60. Nf3 {[%clk 0:00:18]}  h3 {[%clk 0:00:06]} 61. gxh3 {[%clk 0:00:18]}  Ra3 {[%clk 0:00:07]} 62. Ng1 {[%clk 0:00:17]}  Kxe4 {[%clk 0:00:07]} 63. Rb2 {[%clk 0:00:17]}  Kd5 {[%clk 0:00:07]} 64. b5 {[%clk 0:00:17]}  Ra8 {[%clk 0:00:08]} 65. b6 {[%clk 0:00:18]}  Rb8 {[%clk 0:00:08]} 66. h4 {[%clk 0:00:17]}  Kc4 {[%clk 0:00:09]} 67. Nf3 {[%clk 0:00:17]}  e5 {[%clk 0:00:10]} 68. Nxe5+ {[%clk 0:00:17]}  Kc3 {[%clk 0:00:11]} 69. Rb1 {[%clk 0:00:17]}  Rf8+ {[%clk 0:00:11]} 70. Nf3 {[%clk 0:00:17]}  Re8 {[%clk 0:00:12]} 71. b7 {[%clk 0:00:17]}  Rb8 {[%clk 0:00:13]} 72. h5 {[%clk 0:00:17]}  Kc2 {[%clk 0:00:14]} 73. Rb6 {[%clk 0:00:17]}  Kc3 {[%clk 0:00:15]} 74. h6 {[%clk 0:00:17]}  Rg8 {[%clk 0:00:16]} 75. h7 {[%clk 0:00:17]}  Rh8 {[%clk 0:00:16]} 76. b8=Q {[%clk 0:00:17]}  Rxh7 {[%clk 0:00:17]} 77. Qe5+ {[%clk 0:00:17]}  Kd3 {[%clk 0:00:17]} 78. Qd4+ {[%clk 0:00:17]} 1-0


[Site "https://www.chess.com"]

[Event "Titled Tuesday Blitz July 05 Late 2022"]
[White "Sjugirov, Sanan"]
[Black "Bilych, Olexiy"]
[WhiteFideId "4189302"]
[BlackFideId "14156504"]
[WhiteElo "2609"]
[BlackElo "2189"]
[Result "0-1"]
[Round "08"]
[TimeControl "180+1"]
[Date "2022.07.05"]
[WhiteClock "0:01:12"]
[BlackClock "0:00:34"]

1. e4 {[%clk 0:03:00]}  e5 {[%clk 0:03:00]} 2. Nf3 {[%clk 0:03:01]}  Nc6 {[%clk 0:03:00]} 3. Bb5 {[%clk 0:03:01]}  a6 {[%clk 0:02:59]} 4. Ba4 {[%clk 0:03:02]}  Nf6 {[%clk 0:02:59]} 5. O-O {[%clk 0:03:02]}  Be7 {[%clk 0:02:59]} 6. d3 {[%clk 0:03:02]}  b5 {[%clk 0:02:58]} 7. Bb3 {[%clk 0:03:03]}  O-O {[%clk 0:02:58]} 8. a4 {[%clk 0:03:03]}  Bb7 {[%clk 0:02:53]} 9. Nc3 {[%clk 0:02:55]}  Na5 {[%clk 0:02:36]} 10. Nxe5 {[%clk 0:02:48]}  Nxb3 {[%clk 0:02:30]} 11. cxb3 {[%clk 0:02:49]}  b4 {[%clk 0:02:31]} 12. Ne2 {[%clk 0:02:49]}  d5 {[%clk 0:02:25]} 13. exd5 {[%clk 0:02:28]}  Qxd5 {[%clk 0:02:25]} 14. Nf3 {[%clk 0:02:28]}  c5 {[%clk 0:02:25]} 15. d4 {[%clk 0:02:22]}  Rad8 {[%clk 0:02:19]} 16. Be3 {[%clk 0:02:22]}  cxd4 {[%clk 0:01:44]} 17. Nexd4 {[%clk 0:02:19]}  Ng4 {[%clk 0:01:29]} 18. Qc2 {[%clk 0:02:16]}  Nxe3 {[%clk 0:01:16]} 19. fxe3 {[%clk 0:02:17]}  Rfe8 {[%clk 0:01:15]} 20. Rad1 {[%clk 0:02:14]}  Bf6 {[%clk 0:01:11]} 21. Nf5 {[%clk 0:02:00]}  Qc6 {[%clk 0:01:08]} 22. Qxc6 {[%clk 0:01:58]}  Bxc6 {[%clk 0:01:09]} 23. Rxd8 {[%clk 0:01:55]}  Rxd8 {[%clk 0:01:08]} 24. N3d4 {[%clk 0:01:52]}  Bd5 {[%clk 0:00:59]} 25. Rc1 {[%clk 0:01:41]}  g6 {[%clk 0:00:59]} 26. Ng3 {[%clk 0:01:18]}  Bxd4 {[%clk 0:00:59]} 27. exd4 {[%clk 0:01:19]}  Bxb3 {[%clk 0:01:00]} 28. a5 {[%clk 0:01:20]}  Rxd4 {[%clk 0:00:56]} 29. Rc6 {[%clk 0:01:20]}  Bc4 {[%clk 0:00:51]} 30. Kf2 {[%clk 0:01:18]}  Bb5 {[%clk 0:00:45]} 31. Rc2 {[%clk 0:01:18]}  b3 {[%clk 0:00:45]} 32. Rc8+ {[%clk 0:01:18]}  Kg7 {[%clk 0:00:45]} 33. Ke3 {[%clk 0:01:16]}  Rd3+ {[%clk 0:00:43]} 34. Kf4 {[%clk 0:01:14]}  Rd2 {[%clk 0:00:42]} 35. Ne4 {[%clk 0:01:15]}  Rxb2 {[%clk 0:00:40]} 36. g4 {[%clk 0:01:15]}  Re2 {[%clk 0:00:35]} 37. Nc3 {[%clk 0:01:12]}  b2 {[%clk 0:00:34]} 0-1


[Site "https://www.chess.com"]

[Event "Titled Tuesday Blitz July 05 Late 2022"]
[White "Swiercz, Dariusz"]
[Black "Andreikin, Dmitry"]
[WhiteFideId "1126881"]
[BlackFideId "4158814"]
[WhiteElo "2627"]
[BlackElo "2736"]
[Result "0-1"]
[Round "08"]
[TimeControl "180+1"]
[Date "2022.07.05"]
[WhiteClock "0:00:03"]
[BlackClock "0:00:21"]

1. d4 {[%clk 0:02:59]}  d5 {[%clk 0:03:00]} 2. c4 {[%clk 0:03:00]}  e6 {[%clk 0:03:00]} 3. Nf3 {[%clk 0:03:00]}  Nf6 {[%clk 0:03:01]} 4. g3 {[%clk 0:03:00]}  Bb4+ {[%clk 0:02:59]} 5. Bd2 {[%clk 0:03:00]}  Be7 {[%clk 0:03:00]} 6. Bg2 {[%clk 0:03:01]}  O-O {[%clk 0:03:00]} 7. O-O {[%clk 0:03:01]}  c6 {[%clk 0:03:01]} 8. Qc2 {[%clk 0:03:01]}  Nbd7 {[%clk 0:03:01]} 9. a4 {[%clk 0:03:02]}  Ne4 {[%clk 0:02:59]} 10. a5 {[%clk 0:02:58]}  Nxd2 {[%clk 0:02:56]} 11. Nbxd2 {[%clk 0:02:56]}  f5 {[%clk 0:02:56]} 12. Rfc1 {[%clk 0:02:52]}  a6 {[%clk 0:02:56]} 13. e3 {[%clk 0:02:42]}  Bd6 {[%clk 0:02:56]} 14. Nb3 {[%clk 0:02:30]}  Nf6 {[%clk 0:02:47]} 15. cxd5 {[%clk 0:02:02]}  exd5 {[%clk 0:02:47]} 16. Ne5 {[%clk 0:02:02]}  Ng4 {[%clk 0:02:39]} 17. Qc3 {[%clk 0:02:00]}  h5 {[%clk 0:02:25]} 18. f4 {[%clk 0:01:48]}  h4 {[%clk 0:02:24]} 19. Bf3 {[%clk 0:01:41]}  Rf6 {[%clk 0:02:23]} 20. h3 {[%clk 0:01:26]}  Bxe5 {[%clk 0:01:55]} 21. dxe5 {[%clk 0:01:26]}  Rh6 {[%clk 0:01:55]} 22. hxg4 {[%clk 0:01:16]}  fxg4 {[%clk 0:01:56]} 23. Bg2 {[%clk 0:01:16]}  hxg3 {[%clk 0:01:56]} 24. Qe1 {[%clk 0:01:07]}  Qh4 {[%clk 0:01:54]} 25. Nd4 {[%clk 0:01:08]}  Bd7 {[%clk 0:01:43]} 26. Ra3 {[%clk 0:01:02]}  Rf8 {[%clk 0:01:42]} 27. Ne2 {[%clk 0:00:59]}  Qh2+ {[%clk 0:01:39]} 28. Kf1 {[%clk 0:01:00]}  Rh3 {[%clk 0:01:38]} 29. Nd4 {[%clk 0:00:34]}  g5 {[%clk 0:01:36]} 30. Qd2 {[%clk 0:00:25]}  Rh7 {[%clk 0:00:56]} 31. e6 {[%clk 0:00:26]}  Bc8 {[%clk 0:00:57]} 32. f5 {[%clk 0:00:22]}  Bxe6 {[%clk 0:00:54]} 33. e4 {[%clk 0:00:21]}  dxe4 {[%clk 0:00:48]} 34. Qxg5+ {[%clk 0:00:12]}  Rg7 {[%clk 0:00:48]} 35. Qxg7+ {[%clk 0:00:10]}  Kxg7 {[%clk 0:00:48]} 36. Nxe6+ {[%clk 0:00:11]}  Kg8 {[%clk 0:00:34]} 37. Nxf8 {[%clk 0:00:11]}  Qh6 {[%clk 0:00:35]} 38. Re1 {[%clk 0:00:12]}  Qf4+ {[%clk 0:00:34]} 39. Ke2 {[%clk 0:00:07]}  Qf2+ {[%clk 0:00:34]} 40. Kd1 {[%clk 0:00:07]}  Qxg2 {[%clk 0:00:34]} 41. Ne6 {[%clk 0:00:05]}  Qf2 {[%clk 0:00:31]} 42. Rb3 {[%clk 0:00:02]}  g2 {[%clk 0:00:28]} 43. Rxb7 {[%clk 0:00:02]}  Qxe1+ {[%clk 0:00:24]} 44. Kxe1 {[%clk 0:00:03]}  g1=Q+ {[%clk 0:00:24]} 45. Ke2 {[%clk 0:00:03]}  Qg2+ {[%clk 0:00:23]} 46. Ke1 {[%clk 0:00:03]}  e3 {[%clk 0:00:21]} 0-1


[Site "https://www.chess.com"]

[Event "Titled Tuesday Blitz July 05 Late 2022"]
[White "Tikhonov, Viacheslav"]
[Black "Bjelobrk, Igor"]
[WhiteFideId "44196407"]
[BlackFideId "4300726"]
[WhiteElo "1839"]
[BlackElo "2335"]
[Result "1-0"]
[Round "08"]
[TimeControl "180+1"]
[Date "2022.07.06"]
[WhiteClock "0:00:04"]
[BlackClock "0:00:01"]

1. d4 {[%clk 0:03:00]}  Nf6 {[%clk 0:02:46]} 2. Bf4 {[%clk 0:03:00]}  e6 {[%clk 0:02:43]} 3. e3 {[%clk 0:03:01]}  c5 {[%clk 0:02:42]} 4. c3 {[%clk 0:03:01]}  cxd4 {[%clk 0:02:43]} 5. exd4 {[%clk 0:03:00]}  b6 {[%clk 0:02:43]} 6. Nf3 {[%clk 0:03:00]}  Bb7 {[%clk 0:02:43]} 7. Be2 {[%clk 0:03:00]}  Nc6 {[%clk 0:02:42]} 8. O-O {[%clk 0:02:58]}  Ne7 {[%clk 0:02:42]} 9. Bd6 {[%clk 0:02:54]}  Ne4 {[%clk 0:02:39]} 10. Ba3 {[%clk 0:02:53]}  Ng6 {[%clk 0:02:37]} 11. Bxf8 {[%clk 0:02:53]}  Nxf8 {[%clk 0:02:36]} 12. Nbd2 {[%clk 0:02:53]}  Nf6 {[%clk 0:02:36]} 13. Bd3 {[%clk 0:02:50]}  Ng6 {[%clk 0:02:29]} 14. Re1 {[%clk 0:02:37]}  O-O {[%clk 0:02:23]} 15. a4 {[%clk 0:02:34]}  a6 {[%clk 0:02:19]} 16. Bxg6 {[%clk 0:02:32]}  hxg6 {[%clk 0:02:18]} 17. Qb3 {[%clk 0:02:30]}  Rb8 {[%clk 0:02:14]} 18. Ne5 {[%clk 0:02:26]}  d6 {[%clk 0:02:12]} 19. Nec4 {[%clk 0:02:24]}  Bd5 {[%clk 0:02:09]} 20. Qb4 {[%clk 0:02:21]}  Ne8 {[%clk 0:02:06]} 21. a5 {[%clk 0:02:11]}  b5 {[%clk 0:02:05]} 22. Nb6 {[%clk 0:02:10]}  Bc6 {[%clk 0:02:01]} 23. Rad1 {[%clk 0:01:50]}  Nf6 {[%clk 0:01:54]} 24. b3 {[%clk 0:01:38]}  Qc7 {[%clk 0:01:52]} 25. c4 {[%clk 0:01:34]}  bxc4 {[%clk 0:01:51]} 26. bxc4 {[%clk 0:01:33]}  Nd7 {[%clk 0:01:41]} 27. c5 {[%clk 0:01:31]}  dxc5 {[%clk 0:01:38]} 28. dxc5 {[%clk 0:01:31]}  Nf6 {[%clk 0:01:33]} 29. Ndc4 {[%clk 0:01:18]}  Qf4 {[%clk 0:01:28]} 30. Qd2 {[%clk 0:01:09]}  Qg4 {[%clk 0:01:14]} 31. f3 {[%clk 0:00:48]}  Qh5 {[%clk 0:01:13]} 32. Re5 {[%clk 0:00:43]}  Qh4 {[%clk 0:01:07]} 33. Qd4 {[%clk 0:00:39]}  Qxd4+ {[%clk 0:01:03]} 34. Rxd4 {[%clk 0:00:40]}  Rfd8 {[%clk 0:00:57]} 35. Rxd8+ {[%clk 0:00:36]}  Rxd8 {[%clk 0:00:56]} 36. Nd6 {[%clk 0:00:36]}  Ne8 {[%clk 0:00:49]} 37. Nbc8 {[%clk 0:00:25]}  Nxd6 {[%clk 0:00:44]} 38. Ne7+ {[%clk 0:00:14]}  Kf8 {[%clk 0:00:40]} 39. Nxc6 {[%clk 0:00:14]}  Rc8 {[%clk 0:00:25]} 40. Na7 {[%clk 0:00:14]}  Ra8 {[%clk 0:00:21]} 41. cxd6 {[%clk 0:00:13]}  Rxa7 {[%clk 0:00:22]} 42. Rc5 {[%clk 0:00:14]}  Ke8 {[%clk 0:00:22]} 43. Rc6 {[%clk 0:00:11]}  Kd7 {[%clk 0:00:22]} 44. Rb6 {[%clk 0:00:11]}  e5 {[%clk 0:00:20]} 45. Kf2 {[%clk 0:00:11]}  Ke6 {[%clk 0:00:20]} 46. Ke3 {[%clk 0:00:11]}  Kd5 {[%clk 0:00:20]} 47. g3 {[%clk 0:00:10]}  f5 {[%clk 0:00:18]} 48. h4 {[%clk 0:00:09]}  Kc5 {[%clk 0:00:11]} 49. d7 {[%clk 0:00:09]}  Rxd7 {[%clk 0:00:11]} 50. Rxa6 {[%clk 0:00:09]}  Kc4 {[%clk 0:00:07]} 51. Rxg6 {[%clk 0:00:08]}  Rd3+ {[%clk 0:00:07]} 52. Ke2 {[%clk 0:00:08]}  Ra3 {[%clk 0:00:07]} 53. a6 {[%clk 0:00:07]}  f4 {[%clk 0:00:06]} 54. gxf4 {[%clk 0:00:06]}  exf4 {[%clk 0:00:07]} 55. Re6 {[%clk 0:00:05]}  Ra2+ {[%clk 0:00:07]} 56. Kf1 {[%clk 0:00:05]}  Kd3 {[%clk 0:00:07]} 57. h5 {[%clk 0:00:03]}  Ra1+ {[%clk 0:00:03]} 58. Kg2 {[%clk 0:00:03]}  Ra2+ {[%clk 0:00:01]} 59. Kh3 {[%clk 0:00:03]}  Rf2 {[%clk 0:00:01]} 60. Kg4 {[%clk 0:00:04]} 1-0


[Site "https://www.chess.com"]

[Event "Titled Tuesday Blitz July 05 Late 2022"]
[White "Todorovic, Bojan"]
[Black "Tica, Sven"]
[WhiteFideId "917087"]
[BlackFideId "14526948"]
[WhiteElo "2266"]
[BlackElo "2346"]
[Result "0-1"]
[Round "08"]
[TimeControl "180+1"]
[Date "2022.07.06"]
[WhiteClock "0:00:02"]
[BlackClock "0:00:15"]

1. Nf3 {[%clk 0:02:58]}  g6 {[%clk 0:03:00]} 2. c4 {[%clk 0:02:57]}  Bg7 {[%clk 0:03:01]} 3. Nc3 {[%clk 0:02:57]}  d6 {[%clk 0:03:01]} 4. g3 {[%clk 0:02:54]}  e5 {[%clk 0:02:54]} 5. Bg2 {[%clk 0:02:51]}  f5 {[%clk 0:02:55]} 6. d3 {[%clk 0:02:49]}  Nf6 {[%clk 0:02:55]} 7. O-O {[%clk 0:02:48]}  O-O {[%clk 0:02:55]} 8. Rb1 {[%clk 0:02:47]}  a5 {[%clk 0:02:53]} 9. a3 {[%clk 0:02:46]}  c6 {[%clk 0:02:47]} 10. b4 {[%clk 0:02:45]}  axb4 {[%clk 0:02:48]} 11. axb4 {[%clk 0:02:45]}  h6 {[%clk 0:02:48]} 12. b5 {[%clk 0:02:44]}  Be6 {[%clk 0:02:46]} 13. Nd2 {[%clk 0:02:34]}  d5 {[%clk 0:02:43]} 14. bxc6 {[%clk 0:02:33]}  bxc6 {[%clk 0:02:43]} 15. cxd5 {[%clk 0:02:33]}  cxd5 {[%clk 0:02:43]} 16. Rb5 {[%clk 0:02:15]}  Nc6 {[%clk 0:02:34]} 17. e3 {[%clk 0:02:00]}  e4 {[%clk 0:02:27]} 18. Nb3 {[%clk 0:01:39]}  d4 {[%clk 0:01:35]} 19. Nxd4 {[%clk 0:01:18]}  Nxd4 {[%clk 0:01:35]} 20. exd4 {[%clk 0:01:19]}  Rc8 {[%clk 0:01:25]} 21. Bb2 {[%clk 0:01:02]}  exd3 {[%clk 0:01:25]} 22. d5 {[%clk 0:01:00]}  Bd7 {[%clk 0:01:17]} 23. Rb3 {[%clk 0:00:53]}  Rb8 {[%clk 0:01:15]} 24. Ba3 {[%clk 0:00:48]}  Rxb3 {[%clk 0:01:10]} 25. Qxb3 {[%clk 0:00:47]}  Re8 {[%clk 0:01:11]} 26. Qc4 {[%clk 0:00:26]}  d2 {[%clk 0:01:02]} 27. Qd3 {[%clk 0:00:25]}  Qa5 {[%clk 0:00:55]} 28. Bb2 {[%clk 0:00:24]}  Ne4 {[%clk 0:00:48]} 29. Nxe4 {[%clk 0:00:10]}  fxe4 {[%clk 0:00:46]} 30. Qb3 {[%clk 0:00:09]}  Ba4 {[%clk 0:00:42]} 31. Qa2 {[%clk 0:00:07]}  Bxb2 {[%clk 0:00:42]} 32. Qxb2 {[%clk 0:00:08]}  d1=Q {[%clk 0:00:43]} 33. Rxd1 {[%clk 0:00:06]}  Bxd1 {[%clk 0:00:43]} 34. Qf6 {[%clk 0:00:04]}  Bh5 {[%clk 0:00:31]} 35. d6 {[%clk 0:00:04]}  Qd8 {[%clk 0:00:18]} 36. Qd4 {[%clk 0:00:03]}  Re6 {[%clk 0:00:17]} 37. Bxe4 {[%clk 0:00:02]}  Qxd6 {[%clk 0:00:17]} 38. Bd5 {[%clk 0:00:02]}  Kh7 {[%clk 0:00:15]} 0-1


[Site "https://www.chess.com"]